bitfinex/quotes_SOLUSD_20250622
["timestamp","ask_amount","ask_price","bid_price","bid_amount"]
[1750605485448,5.65961716,130.04,130.01,34.63100719]
[1750605485839,5.65961716,130.04,130.02,34.63100719]
[1750605486038,5.65961716,130.06,130.03,34.63100719]
[1750605486239,11.04143251,130.07,130.03,34.63100719]
[1750605486451,5.65961716,130.07,130.04,34.63100719]
[1750605486757,31.65961716,130.08,130.04,34.63100719]
[1750605486921,31.65961716,130.08,130.05,34.63100719]
[1750605487122,26.0,130.08,130.06,34.63100719]
[1750605487324,31.65961716,130.08,130.06,34.63100719]
[1750605487545,5.65961716,130.09,130.06,34.63100719]
[1750605487749,5.65961716,130.09,130.04,7.68991653]
[1750605488046,11.04055943,130.09,130.06,34.63100719]
[1750605488252,5.65961716,130.09,130.07,34.63100719]
[1750605488447,5.65961716,130.08,130.07,34.63100719]
[1750605488656,5.65961716,130.09,130.07,34.63100719]
[1750605488830,5.65961716,130.09,130.08,53.28065605]
[1750605489029,5.65961716,130.13,130.09,18.64964886]
[1750605489230,5.65961716,130.14,130.12,34.63100719]
[1750605489540,5.65961716,130.16,130.14,18.64964886]
[1750605489758,9.54813358,130.19,130.14,18.64964886]
[1750605489759,12.53793535,130.19,130.15,34.63100719]
[1750605489930,5.71767829,130.18,130.17,34.63100719]
[1750605490129,5.60687522,130.18,130.17,34.63100719]
[1750605491229,5.60687522,130.18,130.13,18.64964886]
[1750605491438,7.16110019,130.2,130.17,34.63100719]
[1750605491632,5.37600269,130.21,130.18,34.63100719]
[1750605491836,31.37600269,130.21,130.18,34.63100719]
[1750605492056,31.37600269,130.21,130.17,34.63100719]
[1750605492348,66.00700988,130.21,130.14,18.64964886]
[1750605492530,38.53710288,130.21,130.17,34.63100719]
[1750605492734,66.00700988,130.21,130.17,34.63100719]
[1750605492964,40.00700988,130.21,130.17,34.63100719]
[1750605493129,38.53710288,130.21,130.18,34.63100719]
[1750605493329,31.37600269,130.21,130.18,34.63100719]
[1750605493947,26.0,130.21,130.18,34.63100719]
[1750605494160,31.37601444,130.21,130.18,34.63100719]
[1750605494342,31.37601444,130.21,130.17,34.63100719]
[1750605494841,31.37607674,130.21,130.19,34.63100719]
[1750605495046,31.37607674,130.21,130.18,34.63100719]
[1750605495456,31.37607674,130.21,130.19,34.63100719]
[1750605495457,26.0,130.21,130.19,34.63100719]
[1750605495673,31.37598912,130.21,130.19,34.63100719]
[1750605495971,13.21553896,130.22,130.2,34.63100719]
[1750605496136,7.84,130.22,130.2,34.63100719]
[1750605496338,7.16110019,130.26,130.21,34.63100719]
[1750605496537,5.37330557,130.28,130.25,34.63100719]
[1750605496740,5.37330557,130.28,130.26,34.63100719]
[1750605497437,5.37330557,130.28,130.25,34.63100719]
[1750605497652,34.63100719,130.26,130.19,18.64964886]
[1750605497977,34.63100719,130.24,130.19,34.63100719]
[1750605498167,7.16110019,130.26,130.19,34.63100719]
[1750605498473,26.0,130.23,130.2,34.63100719]
[1750605498666,26.0,130.23,130.21,34.63100719]
[1750605499359,26.0,130.23,130.16,18.64964886]
[1750605499549,26.0,130.23,130.21,34.63100719]
[1750605500263,31.37386764,130.26,130.22,34.63100719]
[1750605500442,26.0,130.22,130.15,6.6409]
[1750605500642,60.63100719,130.22,130.17,34.63100719]
[1750605501146,60.63100719,130.22,130.15,6.6409]
[1750605501147,60.63100719,130.22,130.18,34.63100719]
[1750605501362,26.0,130.22,130.19,34.63100719]
[1750605501577,26.0,130.22,130.18,34.63100719]
[1750605501748,66.00662935,130.22,130.18,34.63100719]
[1750605501953,26.0,130.22,130.16,18.64964886]
[1750605502155,26.0,130.22,130.18,34.63100719]
[1750605502689,26.0,130.24,130.16,44.64964886]
[1750605502985,26.0,130.24,130.21,34.63100719]
[1750605503669,34.63100719,130.26,130.22,34.63100719]
[1750605503847,26.0,130.26,130.23,34.63100719]
[1750605504053,79.70418961,130.28,130.23,34.63100719]
[1750605504355,26.0,130.27,130.23,34.63100719]
[1750605504550,79.70418961,130.28,130.23,34.63100719]
[1750605504770,105.70418961,130.28,130.23,34.63100719]
[1750605504948,73.84418961,130.28,130.23,34.63100719]
[1750605505151,39.21318242,130.28,130.24,34.63100719]
[1750605505401,39.21318242,130.28,130.19,63.8516882]
[1750605505402,7.84,130.28,130.25,34.63100719]
[1750605505681,11.7124686,130.31,130.27,34.63100719]
[1750605505887,6.0382,130.31,130.27,34.63100719]
[1750605506095,26.0,130.31,130.27,34.63100719]
[1750605506579,60.63100719,130.31,130.27,34.63100719]
[1750605507077,31.37181803,130.31,130.27,34.63100719]
[1750605507279,26.0,130.31,130.28,34.63100719]
[1750605507866,7.84,130.33,130.3,34.63100719]
[1750605508187,13.21108999,130.33,130.26,7.6769374]
[1750605508368,47.84209718,130.33,130.28,34.63100719]
[1750605508798,47.84209718,130.33,130.29,34.63100719]
[1750605508969,47.84209718,130.33,130.28,34.63100719]
[1750605509582,13.21108999,130.33,130.29,34.63100719]
[1750605509766,47.84209718,130.33,130.29,34.63100719]
[1750605509972,47.84209718,130.33,130.28,34.63100719]
[1750605510684,34.63100719,130.35,130.25,142.1269885]
[1750605510980,26.0,130.34,130.31,34.63100719]
[1750605511190,66.00172441,130.34,130.29,34.63100719]
[1750605511362,26.0,130.34,130.3,34.63100719]
[1750605511682,26.0,130.33,130.3,34.63100719]
[1750605511870,26.0,130.33,130.26,26.86933824]
[1750605512065,26.0,130.33,130.3,34.63100719]
[1750605512373,60.63100719,130.34,130.26,26.86933824]
[1750605512687,66.00165315,130.34,130.3,34.63100719]
[1750605512881,34.63100719,130.32,130.25,142.12707774]
[1750605513084,5.37180569,130.31,130.27,34.63100719]
[1750605513388,40.00281288,130.31,130.26,34.63100719]
[1750605513584,66.00281288,130.31,130.27,34.63100719]
[1750605513790,31.37180569,130.31,130.25,34.63100719]
[1750605513987,60.63100719,130.31,130.27,34.63100719]
[1750605514287,26.0,130.32,130.29,34.63100719]
[1750605515071,40.00157647,130.34,130.29,34.63100719]
[1750605515673,34.63100719,130.33,130.28,34.63100719]
[1750605515868,34.63100719,130.32,130.28,34.63100719]
[1750605516072,34.63100719,130.31,130.27,34.63100719]
[1750605516385,26.0,130.31,130.26,34.63100719]
[1750605516584,60.63100719,130.31,130.26,34.63100719]
[1750605516789,34.63100719,130.3,130.26,34.63100719]
[1750605517171,5.37221795,130.3,130.26,23.59687506]
[1750605517405,26.0,130.31,130.28,23.59687506]
[1750605517901,54.96869359,130.31,130.27,23.59687506]
[1750605518575,26.0,130.28,130.24,23.59687506]
[1750605518776,49.59687506,130.28,130.24,23.59687506]
[1750605518976,23.59687506,130.26,130.23,14.4184]
[1750605519175,5.37428023,130.25,130.23,14.4184]
[1750605519383,6.1749,130.31,130.24,23.59687506]
[1750605519384,26.0,130.27,130.24,23.59687506]
[1750605519587,26.0,130.27,130.25,23.59687506]
[1750605519766,5.64915831,130.3,130.25,23.59687506]
[1750605519977,5.37023585,130.35,130.29,23.59687506]
[1750605520201,5.36894898,130.38,130.34,23.59687506]
[1750605520508,1.6681567,130.39,130.35,23.59687506]
[1750605520806,26.0,130.37,130.34,23.59687506]
[1750605521173,5.36933343,130.37,130.32,23.59687506]
[1750605521366,26.0,130.36,130.32,23.59687506]
[1750605521697,9.59687506,130.35,130.29,18.64964886]
[1750605521997,9.59687506,130.35,130.3,23.59687506]
[1750605522171,23.59687506,130.34,130.3,23.59687506]
[1750605522373,23.59687506,130.34,130.29,23.59687506]
[1750605522573,23.59687506,130.32,130.26,1.535]
[1750605522883,23.59687506,130.32,130.28,23.59687506]
[1750605523070,23.59687506,130.31,130.23,26.0]
[1750605523271,28.96826855,130.32,130.27,23.59687506]
[1750605523677,28.96826855,130.32,130.28,23.59687506]
[1750605523876,42.39675228,130.32,130.27,23.59687506]
[1750605524086,23.59687506,130.3,130.24,18.64964886]
[1750605524294,23.59687506,130.29,130.25,23.59687506]
[1750605524689,5.37139349,130.32,130.28,23.59687506]
[1750605524996,5.37139349,130.32,130.24,23.59687506]
[1750605524997,5.37139349,130.32,130.27,23.59687506]
[1750605525182,28.96826855,130.32,130.28,23.59687506]
[1750605525774,23.59687506,130.29,130.21,3.93203038]
[1750605525974,23.59687506,130.28,130.23,23.59687506]
[1750605526278,49.59687506,130.29,130.25,23.59687506]
[1750605526487,18.79987722,130.32,130.27,23.59687506]
[1750605526810,18.79987722,130.32,130.23,26.0]
[1750605526811,49.59687506,130.31,130.26,23.59687506]
[1750605527286,5.37221795,130.3,130.26,23.59687506]
[1750605527484,5.37221795,130.3,130.27,23.59687506]
[1750605527485,26.0,130.3,130.27,23.59687506]
[1750605527671,26.0,130.31,130.29,23.59687506]
[1750605528090,5.37113277,130.33,130.3,23.59687506]
[1750605528280,11.92320131,130.36,130.32,23.59687506]
[1750605528791,11.1103567,130.39,130.35,23.59687506]
[1750605528792,34.70723176,130.39,130.35,23.59687506]
[1750605529104,28.96591349,130.38,130.29,18.64964886]
[1750605529276,39.84033247,130.38,130.33,34.47129404]
[1750605529475,34.47129404,130.37,130.3,7.67459708]
[1750605529676,34.47129404,130.37,130.33,34.47129404]
[1750605529872,45.49542047,130.38,130.33,34.47129404]
[1750605530775,11.02412643,130.38,130.29,7.67518612]
[1750605530978,34.47129404,130.37,130.33,34.47129404]
[1750605531180,45.49542047,130.38,130.33,34.47129404]
[1750605531595,34.47129404,130.37,130.33,34.47129404]
[1750605531992,11.02412643,130.38,130.33,34.47129404]
[1750605532186,34.47129404,130.37,130.29,18.64964886]
[1750605532379,34.47129404,130.36,130.32,34.47129404]
[1750605532585,34.47129404,130.36,130.31,34.47129404]
[1750605532586,34.47129404,130.35,130.31,34.47129404]
[1750605532999,26.0,130.31,130.25,8.2888]
[1750605533203,26.0,130.27,130.21,3.80755771]
[1750605533403,26.0,130.23,130.12,7.68521364]
[1750605533606,26.0,130.22,130.12,7.68521364]
[1750605533784,34.47129404,130.2,130.15,34.47129404]
[1750605533984,26.0,130.2,130.11,6.6294]
[1750605534284,7.16110019,130.24,130.19,34.47129404]
[1750605534285,5.655088,130.23,130.19,34.47129404]
[1750605534487,5.655088,130.25,130.22,34.47129404]
[1750605534681,31.37391435,130.26,130.15,10.26]
[1750605534884,26.0,130.24,130.16,18.64964886]
[1750605535195,34.47129404,130.22,130.12,11.47827025]
[1750605535397,34.47129404,130.19,130.15,34.47129404]
[1750605535602,5.655088,130.19,130.11,7.68570513]
[1750605535812,5.655088,130.18,130.15,34.47129404]
[1750605536009,40.12638204,130.18,130.14,34.47129404]
[1750605536218,34.47129404,130.18,130.14,34.47129404]
[1750605536382,5.655088,130.18,130.14,34.47129404]
[1750605536787,5.655088,130.18,130.15,34.47129404]
[1750605536994,40.12638204,130.19,130.15,34.47129404]
[1750605537201,45.50317454,130.19,130.15,34.47129404]
[1750605538211,45.50317454,130.19,130.12,26.33437679]
[1750605538503,40.12638204,130.19,130.15,34.47129404]
[1750605538705,5.655088,130.19,130.15,34.47129404]
[1750605538900,31.37642185,130.2,130.15,34.47129404]
[1750605538901,65.84771589,130.2,130.15,34.47129404]
[1750605539077,5.655088,130.19,130.16,34.47129404]
[1750605539603,5.655088,130.19,130.12,7.68472793]
[1750605539807,5.655088,130.19,130.15,34.47129404]
[1750605540108,11.03187993,130.19,130.15,34.47129404]
[1750605540310,45.50317397,130.19,130.15,34.47129404]
[1750605541321,5.655088,130.19,130.12,26.3348625]
[1750605541595,26.0,130.2,130.17,34.47129404]
[1750605541821,26.0,130.2,130.16,34.47129404]
[1750605542113,5.655088,130.2,130.18,34.47129404]
[1750605542413,32.88657808,130.26,130.15,45.54169649]
[1750605542414,5.655088,130.21,130.15,45.54169649]
[1750605542653,5.69696485,130.25,130.21,18.64964886]
[1750605542826,12.85806504,130.28,130.24,34.47129404]
[1750605543138,5.69696485,130.27,130.25,34.47129404]
[1750605543339,5.69696485,130.28,130.26,34.47129404]
[1750605543540,5.37301471,130.29,130.19,18.64964886]
[1750605543541,11.06997956,130.29,130.25,34.47129404]
[1750605543750,11.06997956,130.29,130.27,34.47129404]
[1750605543751,5.69696485,130.29,130.27,34.47129404]
[1750605544115,21.94304973,130.3,130.27,34.47129404]
[1750605544634,21.94304973,130.3,130.22,18.64964886]
[1750605544635,5.37221975,130.3,130.22,18.64964886]
[1750605544798,5.37221975,130.3,130.24,34.47129404]
[1750605544799,34.47129404,130.28,130.24,34.47129404]
[1750605545222,83.16455656,130.3,130.25,34.47129404]
[1750605545424,34.47129404,130.29,130.25,34.47129404]
[1750605545619,34.47129404,130.28,130.24,34.47129404]
[1750605546130,16.33999364,130.31,130.27,34.47129404]
[1750605546357,16.33999364,130.31,130.28,34.47129404]
[1750605546829,10.96808335,130.31,130.29,34.47129404]
[1750605547501,10.96808335,130.31,130.3,34.47129404]
[1750605548435,10.96808335,130.31,130.3,42.14589112]
[1750605548611,10.96808335,130.31,130.3,34.47129404]
[1750605549130,10.96808335,130.31,130.3,42.14589112]
[1750605549854,16.66552835,130.31,130.3,60.79553998]
[1750605550833,16.66552835,130.31,130.3,34.47129404]
[1750605551314,16.66552835,130.31,130.29,34.47129404]
[1750605551814,16.66552835,130.31,130.27,26.3258476]
[1750605552039,16.66552835,130.31,130.3,34.47129404]
[1750605552447,16.66552835,130.31,130.3,42.14589112]
[1750605552634,16.66552835,130.31,130.3,34.47129404]
[1750605553530,16.66552835,130.31,130.3,42.14589112]
[1750605554959,16.66552835,130.31,130.3,60.79553998]
[1750605555117,5.697445,130.31,130.3,60.79553998]
[1750605557245,5.697445,130.31,130.3,49.89226445]
[1750605557761,13.93897071,130.39,130.3,92.64677566]
[1750605557923,1.6681567,130.39,130.37,23.56801851]
[1750605558119,1.6681567,130.39,130.33,18.64964886]
[1750605558337,1.6681567,130.39,130.38,23.56801851]
[1750605559438,1.6681567,130.39,130.36,23.56801851]
[1750605559617,1.6681567,130.39,130.33,18.64964886]
[1750605559618,1.6681567,130.39,130.34,7.67224182]
[1750605559822,1.6681567,130.39,130.37,23.56801851]
[1750605560861,23.56801851,130.38,130.34,7.67224182]
[1750605561030,25.23617521,130.39,130.35,23.56801851]
[1750605561382,1.6681567,130.39,130.35,23.56801851]
[1750605561933,1.6681567,130.39,130.35,7.67157929]
[1750605562135,1.6681567,130.39,130.36,23.56801851]
[1750605562342,1.6681567,130.39,130.35,7.67157929]
[1750605562539,25.23617521,130.39,130.35,7.67157929]
[1750605562734,1.6681567,130.39,130.37,23.56801851]
[1750605562952,1.6681567,130.39,130.38,23.56801851]
[1750605563134,1.6681567,130.39,130.37,89.8]
[1750605563943,5.37056928,130.34,130.26,7.67695378]
[1750605564146,23.56801851,130.31,130.26,7.67695378]
[1750605564348,5.37056928,130.34,130.25,7.67732275]
[1750605564664,23.56801851,130.26,130.19,7.68108149]
[1750605564872,23.56801851,130.25,130.2,23.56801851]
[1750605565174,6.3455,130.27,130.17,23.56801851]
[1750605565175,23.56801851,130.22,130.17,23.56801851]
[1750605565328,23.56801851,130.23,130.16,7.68277519]
[1750605565525,23.56801851,130.23,130.19,23.56801851]
[1750605565724,23.56801851,130.21,130.15,7.68330884]
[1750605565946,23.56801851,130.22,130.17,31.25020763]
[1750605566144,28.94364536,130.22,130.16,7.6826677]
[1750605566354,28.94364536,130.22,130.17,23.56801851]
[1750605566548,28.94364536,130.22,130.18,23.56801851]
[1750605566758,5.37562685,130.22,130.17,23.56801851]
[1750605566968,23.56801851,130.2,130.15,23.56801851]
[1750605567261,34.57017509,130.2,130.15,34.57017509]
[1750605567556,34.57017509,130.19,130.15,34.57017509]
[1750605567742,34.57017509,130.2,130.15,34.57017509]
[1750605568052,39.94668611,130.2,130.15,34.57017509]
[1750605568881,5.37651102,130.2,130.16,34.57017509]
[1750605569056,34.57017509,130.21,130.16,34.57017509]
[1750605569230,34.57017509,130.23,130.18,34.57017509]
[1750605569435,31.37477997,130.24,130.17,34.57017509]
[1750605569436,34.57017509,130.21,130.17,34.57017509]
[1750605569639,34.57017509,130.21,130.12,63.86167549]
[1750605569640,34.57017509,130.2,130.16,34.57017509]
[1750605570051,5.37675704,130.19,130.15,34.57017509]
[1750605570559,5.37645675,130.2,130.16,34.57017509]
[1750605570969,39.94663184,130.2,130.16,34.57017509]
[1750605571469,34.57017509,130.17,130.08,27.3719088]
[1750605571757,34.57017509,130.17,130.05,56.13610148]
[1750605571758,60.57017509,130.17,130.05,56.13610148]
[1750605571958,60.57017509,130.17,130.12,34.57017509]
[1750605572137,65.94816952,130.17,130.12,34.57017509]
[1750605572329,34.57017509,130.15,130.11,34.57017509]
[1750605572956,34.57017509,130.15,130.09,26.33647072]
[1750605573162,34.57017509,130.15,130.11,34.57017509]
[1750605573347,39.94862095,130.15,130.11,34.57017509]
[1750605573548,34.57017509,130.13,130.07,18.64964886]
[1750605573761,34.57017509,130.11,130.07,34.57017509]
[1750605574061,60.57017509,130.12,130.07,34.57017509]
[1750605574466,26.0,130.12,130.08,34.57017509]
[1750605574757,65.94862095,130.15,130.11,34.57017509]
[1750605574957,26.0,130.15,130.11,34.57017509]
[1750605575164,40.57557509,130.18,130.13,34.57017509]
[1750605575538,40.57557509,130.18,130.11,18.64964886]
[1750605575738,34.57017509,130.17,130.13,34.57017509]
[1750605576058,6.0054,130.18,130.11,18.64964886]
[1750605576402,39.94699798,130.19,130.15,34.57017509]
[1750605576659,26.0,130.18,130.15,34.57017509]
[1750605577044,9.84,130.21,130.17,34.57017509]
[1750605577363,39.94653289,130.2,130.11,18.64964886]
[1750605577666,34.57017509,130.14,130.1,34.57017509]
[1750605577861,34.57017509,130.14,130.09,34.57017509]
[1750605578162,26.0,130.15,130.07,7.6881679]
[1750605578163,34.57017509,130.13,130.07,7.6881679]
[1750605578336,34.57017509,130.13,130.09,34.57017509]
[1750605579260,7.11989251,130.18,130.06,44.64964886]
[1750605579448,36.3774621,130.2,130.12,34.57017509]
[1750605579449,34.57017509,130.17,130.12,34.57017509]
[1750605579650,26.0,130.16,130.13,34.57017509]
[1750605580557,26.0,130.16,130.1,7.68584142]
[1750605580757,34.57017509,130.15,130.08,26.33720521]
[1750605580974,34.57017509,130.14,130.1,34.57017509]
[1750605581566,34.57017509,130.14,130.07,7.68797756]
[1750605581884,34.57017509,130.13,130.09,34.57017509]
[1750605582198,34.57017509,130.14,130.09,34.57017509]
[1750605582481,31.37805503,130.16,130.12,34.57017509]
[1750605582867,26.0,130.16,130.08,52.90574715]
[1750605583163,26.0,130.15,130.13,34.57017509]
[1750605583360,26.0,130.15,130.08,52.90574715]
[1750605583361,39.94745369,130.18,130.14,34.57017509]
[1750605583554,26.0,130.17,130.14,34.57017509]
[1750605583756,26.0,130.17,130.13,34.57017509]
[1750605584172,31.37775452,130.17,130.13,34.57017509]
[1750605584770,31.37775452,130.17,130.11,7.68569153]
[1750605584771,26.0,130.17,130.14,34.57017509]
[1750605585090,45.98447509,130.21,130.12,7.68494882]
[1750605585261,39.94664434,130.2,130.12,7.68494882]
[1750605585581,34.57017509,130.18,130.14,34.57017509]
[1750605586277,5.37799631,130.16,130.13,34.57017509]
[1750605587167,55.02312023,130.17,130.13,23.64546093]
[1750605587483,31.3776593,130.17,130.13,23.64546093]
[1750605587785,55.02270093,130.18,130.14,23.64546093]
[1750605588398,55.02270093,130.18,130.13,23.64546093]
[1750605588892,31.37724,130.18,130.14,23.64546093]
[1750605589096,55.02270093,130.18,130.14,23.64546093]
[1750605589305,29.02271564,130.18,130.13,23.64546093]
[1750605589465,23.64546093,130.17,130.1,7.68639508]
[1750605589670,23.64546093,130.16,130.1,97.48639508]
[1750605589970,23.64546093,130.14,130.1,23.64546093]
[1750605590696,26.0,130.15,130.11,23.64546093]
[1750605590863,5.3788228,130.14,130.07,26.33733892]
[1750605591062,5.3788228,130.14,130.1,23.64546093]
[1750605591265,29.02428373,130.14,130.1,23.64546093]
[1750605591461,29.02428373,130.14,130.07,26.33733892]
[1750605591671,29.02428373,130.14,130.1,23.64546093]
[1750605591874,5.3788228,130.14,130.1,23.64546093]
[1750605592084,55.02395806,130.15,130.11,23.64546093]
[1750605592990,26.0,130.15,130.12,23.64546093]
[1750605593683,5.37770588,130.17,130.13,23.64546093]
[1750605593877,5.37730935,130.18,130.14,23.64546093]
[1750605594079,49.64546093,130.17,130.13,23.64546093]
[1750605594589,49.64546093,130.17,130.12,23.64546093]
[1750605594970,55.02343735,130.17,130.12,23.64546093]
[1750605595604,23.64546093,130.16,130.12,23.64546093]
[1750605596104,23.64546093,130.13,130.06,7.68875903]
[1750605596413,26.0,130.1,130.0,93.69332141]
[1750605596609,23.64546093,130.06,129.99,7.69289945]
[1750605596785,23.64546093,130.06,130.01,23.64546093]
[1750605596992,23.64546093,130.06,130.02,23.64546093]
[1750605597192,23.64546093,130.07,129.99,7.69289945]
[1750605597383,49.64546093,130.05,129.97,17.63356623]
[1750605597592,49.64546093,130.05,130.0,23.64546093]
[1750605597892,49.64546093,130.05,129.95,23.64546093]
[1750605597893,23.64546093,130.01,129.95,23.64546093]
[1750605598079,23.64546093,129.96,129.9,23.64546093]
[1750605598280,23.64546093,129.93,129.89,23.64546093]
[1750605599099,5.38793103,129.92,129.89,23.64546093]
[1750605599303,5.38710173,129.94,129.86,7.70043289]
[1750605599502,23.64546093,129.93,129.88,23.64546093]
[1750605599810,23.64546093,129.93,129.85,9.2251113]
[1750605599811,23.64546093,129.92,129.85,7.7011113]
[1750605599994,23.64546093,129.91,129.87,23.64546093]
[1750605600193,49.64546093,129.92,129.85,7.7011113]
[1750605600384,49.64546093,129.92,129.88,23.64546093]
[1750605600385,26.0,129.92,129.88,23.64546093]
[1750605600578,26.0,129.92,129.87,7.6995332]
[1750605600809,23.64546093,129.91,129.86,23.64546093]
[1750605600986,23.64546093,129.9,129.85,23.64546093]
[1750605601183,60.73085714,129.89,129.84,34.73085714]
[1750605601485,6.0272,129.94,129.88,34.73085714]
[1750605601790,34.73085714,130.01,129.93,34.73085714]
[1750605601979,5.3837871,130.02,129.98,34.73085714]
[1750605602175,9.83078692,130.0,129.98,34.73085714]
[1750605602403,35.83078692,130.0,129.91,44.64964886]
[1750605602709,41.21567327,130.0,129.96,34.73085714]
[1750605602915,41.21567327,130.0,129.92,7.69704433]
[1750605602916,41.21567327,130.0,129.95,34.73085714]
[1750605603213,75.94653041,130.0,129.95,34.73085714]
[1750605603586,75.94640794,130.0,129.95,34.73085714]
[1750605603891,26.0,129.97,129.94,34.73085714]
[1750605604097,26.0,129.97,129.95,34.73085714]
[1750605604493,15.2155508,130.0,129.94,34.73085714]
[1750605604494,60.73085714,129.98,129.94,34.73085714]
[1750605604813,26.0,129.98,129.95,34.73085714]
[1750605607414,26.0,129.98,129.97,34.73085714]
[1750605608793,26.0,129.98,129.93,7.6959044]
[1750605608988,9.83078692,130.0,129.97,34.73085714]
[1750605609192,35.83078692,130.0,129.98,34.73085714]
[1750605609392,35.83078692,130.0,129.99,34.73085714]
[1750605609393,9.83078692,130.0,129.99,34.73085714]
[1750605609598,9.83078692,130.0,129.94,18.64964886]
[1750605609803,9.83078692,130.0,129.97,34.73085714]
[1750605610004,9.83078692,130.0,129.94,18.64964886]
[1750605610202,9.83078692,130.0,129.97,34.73085714]
[1750605610405,9.83078692,130.0,129.96,34.73085714]
[1750605610731,34.73085714,129.97,129.93,34.73085714]
[1750605611020,26.0,129.97,129.94,34.73085714]
[1750605611396,49.94631235,130.0,129.95,34.73085714]
[1750605611615,60.73085714,129.99,129.95,34.73085714]
[1750605612122,26.0,129.99,129.95,34.73085714]
[1750605612419,26.0,129.97,129.9,7.69806111]
[1750605612622,60.73085714,129.92,129.86,7.70042705]
[1750605612830,34.73085714,129.91,129.87,42.43057909]
[1750605612995,60.73085714,129.92,129.88,34.73085714]
[1750605613515,26.0,129.92,129.88,34.73085714]
[1750605613698,26.0,129.92,129.89,34.73085714]
[1750605614314,66.11879791,129.92,129.88,34.73085714]
[1750605614493,34.73085714,129.91,129.87,34.73085714]
[1750605614893,40.11922965,129.91,129.87,34.73085714]
[1750605616219,5.38837251,129.91,129.87,34.73085714]
[1750605616529,66.11883066,129.92,129.88,34.73085714]
[1750605616824,26.0,129.92,129.88,34.73085714]
[1750605617006,31.38801922,129.92,129.83,19.25582418]
[1750605617201,34.73085714,129.87,129.81,7.70356675]
[1750605617439,34.73085714,129.86,129.82,34.73085714]
[1750605617643,60.73085714,129.87,129.82,34.73085714]
[1750605617840,9.94,129.91,129.86,34.73085714]
[1750605618005,26.0,129.88,129.82,18.64964886]
[1750605618208,26.0,129.88,129.85,34.73085714]
[1750605618410,34.73085714,129.89,129.85,34.73085714]
[1750605618714,34.73085714,129.88,129.81,26.35321561]
[1750605618922,5.38876058,129.9,129.85,34.73085714]
[1750605619117,34.73085714,129.89,129.85,34.73085714]
[1750605619313,34.73085714,129.9,129.85,34.73085714]
[1750605619513,50.05929868,129.91,129.86,34.73085714]
[1750605619934,9.94,129.91,129.87,34.73085714]
[1750605620237,9.94,129.91,129.83,7.7022109]
[1750605620238,9.94,129.91,129.83,26.95816098]
[1750605620444,35.94,129.91,129.87,34.73085714]
[1750605620918,41.32840051,129.91,129.86,34.73085714]
[1750605621121,76.05925765,129.91,129.87,34.73085714]
[1750605621919,26.0,129.91,129.87,34.73085714]
[1750605622115,26.0,129.91,129.89,34.73085714]
[1750605622522,26.0,129.91,129.87,34.73085714]
[1750605622717,26.0,129.91,129.88,34.73085714]
[1750605622927,26.0,129.91,129.89,34.73085714]
[1750605623130,34.73085714,129.92,129.86,26.0]
[1750605623314,23.73617136,129.93,129.86,26.0]
[1750605623514,23.73617136,129.91,129.87,26.0]
[1750605623711,23.73617136,129.92,129.88,23.73617136]
[1750605623915,29.12427381,129.92,129.88,23.73617136]
[1750605624329,29.12427381,129.92,129.87,26.0]
[1750605624330,29.1238189,129.93,129.89,23.73617136]
[1750605624537,5.38764754,129.93,129.89,23.73617136]
[1750605624709,32.0062,129.95,129.88,18.64964886]
[1750605624710,6.0062,129.95,129.88,18.64964886]
[1750605624910,6.0062,129.95,129.92,23.73617136]
[1750605625256,25.31397136,129.97,129.93,23.73617136]
[1750605625458,25.31397136,129.97,129.92,23.73617136]
[1750605625755,29.12251906,129.96,129.92,23.73617136]
[1750605626841,29.12251906,129.96,129.89,7.69877096]
[1750605627157,23.73617136,129.94,129.9,23.73617136]
[1750605627956,5.38710173,129.94,129.88,7.69897976]
[1750605628258,23.73617136,129.91,129.83,7.70238003]
[1750605628433,18.64964886,129.93,129.83,7.70238003]
[1750605628628,26.0,129.9,129.85,23.73617136]
[1750605628988,49.73617136,129.9,129.85,23.73617136]
[1750605629153,18.64964886,129.93,129.82,35.25588764]
[1750605629154,18.64964886,129.93,129.87,23.73617136]
[1750605629333,44.85485607,129.94,129.88,23.73617136]
[1750605629529,23.73617136,129.92,129.88,23.73617136]
[1750605630247,5.38834577,129.91,129.88,23.73617136]
[1750605630757,29.12426174,129.92,129.88,23.73617136]
[1750605631067,5.38762594,129.93,129.9,23.73617136]
[1750605631367,5.38762594,129.93,129.86,7.70044527]
[1750605631368,29.1237973,129.93,129.86,7.70044527]
[1750605631664,29.1237973,129.93,129.89,23.73617136]
[1750605632021,5.38762594,129.93,129.89,23.73617136]
[1750605632219,29.1237973,129.93,129.89,23.73617136]
[1750605633071,5.3872323,129.94,129.91,23.73617136]
[1750605633377,31.38638207,129.96,129.92,23.73617136]
[1750605633542,55.12255343,129.96,129.92,23.73617136]
[1750605633748,31.38638207,129.96,129.92,23.73617136]